[Event "European Online Club-ch-B 2021"]
[Site "Online"]
[Date "2021.03.27"]
[Round "3.6"]
[White "Wojtaszek, Radoslaw"]
[Black "Fontaine, Robert"]
[Result "1/2-1/2"]
[ECO "A25"]
[WhiteElo "2705"]
[BlackElo "2550"]
[Annotator "RC"]
[PlyCount "96"]
[EventDate "2021.03.27"]
[EventType "team-tourn"]
[EventCountry "NET"]
[SourceTitle "playchess.com"]
[Source "ChessBase"]
[SourceQuality "1"]
[TimeControl "900+5"]

1. c4 {[%emt 0:00:00]} e5 {[%emt 0:00:05]} 2. Nc3 {[%emt 0:00:07]} Nc6 {[%emt 0:00:01]} 3. g3 {[%emt 0:00:03]} g6 {[%emt 0:00:03]} 4. Bg2 {[%emt 0:00:01]} Bg7 {[%emt 0:00:01]} 5. d3 {[%emt 0:00:02]} d6 {[%emt 0:00:02]} 6. e3 {[%emt 0:00:07]} f5 {[%emt 0:00:11]} 7. Nge2 {[%emt 0:00:04]} Nf6 {[%emt 0:00:01]} 8. b3 {[%emt 0:00:07]} O-O {[%emt 0:00:02]} 9. Bb2 {[%emt 0:00:02]} g5 {[%emt 0:00:21]} 10. Qd2 {[%emt 0:00:10]} a5 {[%emt 0:00:06]} 11. f4 {[%emt 0:00:12]} exf4 {[%emt 0:00:13]} 12. gxf4 {[%emt 0:01:14]} g4 {[%emt 0:00:05]} 13. h3 {[%emt 0:00:05]} Be6 {[%emt 0:00:22]} 14. hxg4 {[%emt 0:00:18]} Nxg4 {[%emt 0:00:03]} 15. Nd5 {[%emt 0:00:51]} Qd7 {[%emt 0:00:20]} 16. Ng3 {[%emt 0:01:27]} Nb4 {[%emt 0:00:12]} 17. Nxb4 {[%emt 0:01:30]} axb4 {[%emt 0:00:04]} 18. Nh5 {[%emt 0:00:01]} Bxb2 {[%emt 0:00:52]} 19. Qxb2 {[%emt 0:00:03]} Qf7 {[%emt 0:01:13]} 20. Bxb7 {[%emt 0:00:40]} Ra7 {[%emt 0:00:04]} 21. Bf3 {[%emt 0:00:11]} Qg6 {[%emt 0:00:24]} 22. Kd2 {[%emt 0:00:36]} c5 {[%emt 0:00:20]} 23. Rag1 {[%emt 0:00:18]} Kf7 {[%emt 0:00:33]} 24. Kc1 {[%emt 0:01:51]} Ke7 {[%emt 0:00:05]} 25. e4 {[%emt 0:00:56]} Rg8 {[%emt 0:01:24]} 26. Ng3 {[%emt 0:00:15]} Kd8 {[%emt 0:01:36]} 27. Bxg4 {[%emt 0:00:29]} Qxg4 {[%emt 0:01:00]} 28. Ne2 {[%emt 0:02:36]} Qf3 {[%emt 0:00:02]} 29. Qf6+ {[%emt 0:00:13]} Kc7 {[%emt 0:00:19]} 30. Qxe6 {[%emt 0:00:54]} Qe3+ {[%emt 0:01:50]} 31. Kd1 {[%emt 0:00:03]} Qxd3+ {[%emt 0:00:04]} 32. Ke1 {[%emt 0:00:02]} Rxa2 {[%emt 0:00:03]} 33. exf5 {[%emt 0:00:14]} Rxg1+ {[%emt 0:01:15]} 34. Rxg1 {[%emt 0:00:04]} Kb6 {[%emt 0:00:25]} 35. f6 {[%emt 0:00:30]} Qd2+ {[%emt 0:00:42]} 36. Kf1 {[%emt 0:00:07]} Qd3 {[%emt 0:00:42]} 37. Kf2 {[%emt 0:00:28]} Qd4+ {[%emt 0:00:02]} 38. Kf3 {[%emt 0:00:23]} Qd3+ {[%emt 0:00:40]} 39. Qe3 {[%emt 0:00:03]} Qf5 {[%emt 0:00:01]} 40. Rg8 {[%emt 0:00:36]} Qh3+ {[%emt 0:00:12]} 41. Ng3 {[%emt 0:00:02]} h5 {[%emt 0:00:08]} 42. Rb8+ {[%emt 0:00:25]} Ka7 {[%emt 0:00:03]} 43. Qe7+ {[%emt 0:00:04]} Kxb8 {[%emt 0:00:02]} 44. Qxd6+ {[%emt 0:00:03]} Kb7 {[%emt 0:00:09]} 45. Qd5+ {[%emt 0:00:01]} Kb6 {[%emt 0:00:06]} 46. Qd6+ {[%emt 0:00:02]} Kb7 {[%emt 0:00:01]} 47. Qd5+ {[%emt 0:00:01]} Kb6 {[%emt 0:00:01]} 48. Qd6+ {[%emt 0:00:12]} Kb7 {[%emt 0:00:02]} 1/2-1/2

[Event "European Online Club-ch-B 2021"]
[Site "Online"]
[Date "2021.03.27"]
[Round "3.8"]
[White "Sasikiran, Krishnan"]
[Black "Riff, Jean-Noel"]
[Result "1-0"]
[ECO "C92"]
[WhiteElo "2647"]
[BlackElo "2499"]
[Annotator "ChessBase"]
[PlyCount "59"]
[EventDate "2021.03.27"]
[EventType "team-tourn"]
[EventCountry "NET"]
[SourceTitle "playchess.com"]
[Source "ChessBase"]
[SourceQuality "1"]
[TimeControl "900+5"]

1. e4 {[%emt 0:00:00]} e5 {[%emt 0:00:03]} 2. Nf3 {[%emt 0:00:03]} Nc6 {[%emt 0:00:01]} 3. Bb5 {[%emt 0:00:04]} a6 {[%emt 0:00:01]} 4. Ba4 {[%emt 0:00:01]} Nf6 {[%emt 0:00:02]} 5. O-O {[%emt 0:00:02]} Be7 {[%emt 0:00:01]} 6. Re1 {[%emt 0:00:02]} b5 {[%emt 0:00:02]} 7. Bb3 {[%emt 0:00:01]} d6 {[%emt 0:00:01]} 8. c3 {[%emt 0:00:01]} O-O {[%emt 0:00:01]} 9. h3 {[%emt 0:00:01]} Bb7 {[%emt 0:00:02]} 10. d4 {[%emt 0:00:04]} Re8 {[%emt 0:00:01]} 11. Nbd2 {[%emt 0:00:02]} Bf8 {[%emt 0:00:01]} 12. a4 {[%emt 0:00:01]} h6 {[%emt 0:00:15]} 13. Bc2 {[%emt 0:00:16]} exd4 {[%emt 0:00:15]} 14. cxd4 {[%emt 0:00:04]} Nb4 {[%emt 0:00:01]} 15. Bb1 {[%emt 0:00:01]} c5 {[%emt 0:00:02]} 16. d5 {[%emt 0:00:01]} Nd7 {[%emt 0:00:12]} 17. Ra3 {[%emt 0:01:55]} c4 {[%emt 0:00:31]} 18. Nd4 {[%emt 0:02:35]} Qb6 {[%emt 0:03:42]} 19. Nf5 {[%emt 0:03:17]} Ne5 {[%emt 0:00:33]} 20. Rg3 {[%emt 0:02:00]} g6 {[%emt 0:02:12]} 21. Nf3 {[%emt 0:01:30]} Ned3 {[%emt 0:00:26]} 22. Be3 {[%emt 0:00:57]} Qc7 {[%emt 0:00:24]} 23. Nxh6+ {[%emt 0:00:34]} Bxh6 {[%emt 0:00:10]} 24. Bxh6 {[%emt 0:00:03]} Nxe1 {[%emt 0:00:02]} 25. Nxe1 {[%emt 0:01:11]} Re5 {[%emt 0:00:29]} 26. f4 {[%emt 0:00:52]} Qc5+ {[%emt 0:00:03]} 27. Kh2 {[%emt 0:00:02]} Re7 {[%emt 0:00:03]} 28. f5 {[%emt 0:00:13]} Kh7 {[%emt 0:00:41]} 29. Be3 {[%emt 0:00:22]} Qc8 {[%emt 0:00:12]} 30. Qg4 {[%emt 0:00:23]} 1-0

[Event "European Online Club-ch-B 2021"]
[Site "Online"]
[Date "2021.03.27"]
[Round "3.9"]
[White "Santos Latasa, Jaime"]
[Black "Brunner, Nicolas"]
[Result "1-0"]
[ECO "B48"]
[WhiteElo "2608"]
[BlackElo "2418"]
[Annotator "ChessBase"]
[PlyCount "77"]
[EventDate "2021.03.27"]
[EventType "team-tourn"]
[EventCountry "NET"]
[SourceTitle "playchess.com"]
[Source "ChessBase"]
[SourceQuality "1"]
[TimeControl "900+5"]

1. e4 {[%emt 0:00:00]} c5 {[%emt 0:00:02]} 2. Nf3 {[%emt 0:00:02]} e6 {[%emt 0:00:01]} 3. d4 {[%emt 0:00:12]} cxd4 {[%emt 0:00:02]} 4. Nxd4 {[%emt 0:00:01]} Nc6 {[%emt 0:00:01]} 5. Nc3 {[%emt 0:00:01]} Qc7 {[%emt 0:00:00]} 6. a3 {[%emt 0:00:02]} a6 {[%emt 0:00:03]} 7. Be3 {[%emt 0:00:08]} b5 {[%emt 0:00:11]} 8. Nxc6 {[%emt 0:00:04]} Qxc6 {[%emt 0:00:05]} 9. Bd3 {[%emt 0:00:03]} Bb7 {[%emt 0:00:08]} 10. Qd2 {[%emt 0:00:03]} Rc8 {[%emt 0:00:19]} 11. Bd4 {[%emt 0:00:15]} Nf6 {[%emt 0:00:27]} 12. e5 {[%emt 0:00:12]} Ng4 {[%emt 0:01:34]} 13. O-O-O {[%emt 0:00:38]} b4 {[%emt 0:00:26]} 14. axb4 {[%emt 0:00:03]} Bxb4 {[%emt 0:00:02]} 15. Qf4 {[%emt 0:00:02]} Nh6 {[%emt 0:00:25]} 16. Be4 {[%emt 0:01:25]} Qc7 {[%emt 0:00:04]} 17. g4 {[%emt 0:00:18]} O-O {[%emt 0:00:30]} 18. Bxb7 {[%emt 0:00:17]} Qxb7 {[%emt 0:00:03]} 19. Ne4 {[%emt 0:00:10]} Rc4 {[%emt 0:01:19]} 20. c3 {[%emt 0:00:09]} Rb8 {[%emt 0:00:41]} 21. Kc2 {[%emt 0:02:33]} Bf8 {[%emt 0:00:08]} 22. Kd3 {[%emt 0:00:19]} Qb5 {[%emt 0:00:57]} 23. Ke3 {[%emt 0:00:06]} Qxb2 {[%emt 0:00:32]} 24. Rb1 {[%emt 0:00:16]} Qxb1 {[%emt 0:00:14]} 25. Rxb1 {[%emt 0:00:03]} Rxb1 {[%emt 0:00:01]} 26. Kf3 {[%emt 0:00:06]} Rg1 {[%emt 0:01:12]} 27. h3 {[%emt 0:00:08]} a5 {[%emt 0:00:31]} 28. Qd2 {[%emt 0:00:04]} Rh1 {[%emt 0:03:20]} 29. Kg2 {[%emt 0:00:54]} Ra1 {[%emt 0:00:37]} 30. Qb2 {[%emt 0:00:28]} Re1 {[%emt 0:00:04]} 31. Nd6 {[%emt 0:00:28]} Rc6 {[%emt 0:01:07]} 32. Qb7 {[%emt 0:00:27]} a4 {[%emt 0:01:14]} 33. Qxd7 {[%emt 0:00:04]} Ra6 {[%emt 0:00:27]} 34. g5 {[%emt 0:00:25]} Rxd6 {[%emt 0:00:26]} 35. exd6 {[%emt 0:00:03]} Nf5 {[%emt 0:00:00]} 36. Bc5 {[%emt 0:00:13]} Nh4+ {[%emt 0:00:08]} 37. Kh2 {[%emt 0:01:32]} Nf5 {[%emt 0:00:23]} 38. Qe8 {[%emt 0:00:12]} Rd1 {[%emt 0:00:16]} 39. d7 {[%emt 0:00:04]} 1-0

[Event "European Online Club-ch-B 2021"]
[Site "Online"]
[Date "2021.03.27"]
[Round "3.10"]
[White "Mathieu, Phileas"]
[Black "Matnadze, Ana"]
[Result "1/2-1/2"]
[ECO "B12"]
[WhiteElo "2240"]
[BlackElo "2421"]
[Annotator "NA"]
[PlyCount "133"]
[EventDate "2021.03.27"]
[EventType "team-tourn"]
[EventCountry "NET"]
[SourceTitle "playchess.com"]
[Source "ChessBase"]
[SourceQuality "1"]
[TimeControl "900+5"]

1. e4 {[%emt 0:00:00]} c6 {[%emt 0:00:07]} 2. Nf3 {[%emt 0:00:13]} d5 {[%emt 0:00:03]} 3. Nc3 {[%emt 0:00:01]} g6 {[%emt 0:00:04]} 4. d4 {[%emt 0:01:04]} Bg7 {[%emt 0:00:08]} 5. Bd3 {[%emt 0:00:24]} dxe4 {[%emt 0:00:17]} 6. Nxe4 {[%emt 0:00:52]} Nf6 {[%emt 0:00:02]} 7. O-O {[%emt 0:00:04]} O-O {[%emt 0:00:03]} 8. Nxf6+ {[%emt 0:00:07]} exf6 {[%emt 0:00:04]} 9. c3 {[%emt 0:00:05]} Nd7 {[%emt 0:00:04]} 10. Bf4 {[%emt 0:00:07]} Re8 {[%emt 0:00:04]} 11. Re1 {[%emt 0:00:07]} Nf8 {[%emt 0:00:05]} 12. Rxe8 {[%emt 0:00:13]} Qxe8 {[%emt 0:00:03]} 13. Qc2 {[%emt 0:00:03]} Bg4 {[%emt 0:00:07]} 14. Re1 {[%emt 0:00:04]} Qd7 {[%emt 0:00:06]} 15. Nd2 {[%emt 0:00:25]} Re8 {[%emt 0:00:07]} 16. Rxe8 {[%emt 0:00:08]} Qxe8 {[%emt 0:00:02]} 17. f3 {[%emt 0:00:02]} Qe1+ {[%emt 0:00:18]} 18. Nf1 {[%emt 0:00:11]} Be6 {[%emt 0:00:17]} 19. Qb1 {[%emt 0:00:07]} Qxb1 {[%emt 0:00:18]} 20. Bxb1 {[%emt 0:00:02]} Nd7 {[%emt 0:00:09]} 21. Ne3 {[%emt 0:00:13]} f5 {[%emt 0:00:04]} 22. Kf2 {[%emt 0:00:04]} Bf6 {[%emt 0:00:09]} 23. a3 {[%emt 0:00:21]} Kf8 {[%emt 0:00:19]} 24. Ke2 {[%emt 0:00:13]} Ke7 {[%emt 0:00:22]} 25. Bd3 {[%emt 0:00:20]} Bb3 {[%emt 0:00:08]} 26. Bc4 {[%emt 0:00:09]} Ba4 {[%emt 0:00:42]} 27. b3 {[%emt 0:00:13]} Bb5 {[%emt 0:00:03]} 28. Bxb5 {[%emt 0:00:03]} cxb5 {[%emt 0:00:02]} 29. Nd5+ {[%emt 0:00:06]} Kf8 {[%emt 0:00:06]} 30. Kd3 {[%emt 0:00:31]} Bd8 {[%emt 0:00:07]} 31. Bd6+ {[%emt 0:00:12]} Ke8 {[%emt 0:00:16]} 32. c4 {[%emt 0:00:05]} bxc4+ {[%emt 0:00:05]} 33. bxc4 {[%emt 0:00:03]} Nf6 {[%emt 0:00:20]} 34. Nxf6+ {[%emt 0:01:08]} Bxf6 {[%emt 0:00:04]} 35. Be5 {[%emt 0:00:02]} Bg5 {[%emt 0:00:10]} 36. c5 {[%emt 0:00:17]} Bc1 {[%emt 0:00:18]} 37. a4 {[%emt 0:00:04]} Kd7 {[%emt 0:00:24]} 38. Kc4 {[%emt 0:00:02]} Be3 {[%emt 0:00:25]} 39. Kb5 {[%emt 0:00:30]} Ke6 {[%emt 0:00:32]} 40. Kc4 {[%emt 0:00:02]} a6 {[%emt 0:00:24]} 41. h3 {[%emt 0:00:19]} g5 {[%emt 0:00:09]} 42. Bb8 {[%emt 0:00:07]} h5 {[%emt 0:00:43]} 43. d5+ {[%emt 0:00:16]} Kd7 {[%emt 0:00:02]} 44. Be5 {[%emt 0:00:03]} g4 {[%emt 0:00:15]} 45. Bd4 {[%emt 0:00:08]} Bf4 {[%emt 0:00:18]} 46. Kd3 {[%emt 0:00:13]} gxh3 {[%emt 0:00:46]} 47. gxh3 {[%emt 0:00:03]} Bg5 {[%emt 0:00:26]} 48. Be3 {[%emt 0:00:18]} Bf6 {[%emt 0:00:07]} 49. Bd4 {[%emt 0:00:05]} Bg5 {[%emt 0:00:02]} 50. Be5 {[%emt 0:00:02]} Be7 {[%emt 0:00:14]} 51. Kc4 {[%emt 0:00:04]} Bg5 {[%emt 0:00:06]} 52. Bc3 {[%emt 0:00:06]} Be3 {[%emt 0:00:05]} 53. Bd4 {[%emt 0:00:03]} Bg5 {[%emt 0:00:03]} 54. Bf2 {[%emt 0:00:18]} Bf6 {[%emt 0:00:23]} 55. Bg3 {[%emt 0:00:19]} Bg5 {[%emt 0:00:03]} 56. Be5 {[%emt 0:00:02]} Be3 {[%emt 0:00:06]} 57. Bd4 {[%emt 0:00:17]} Bg5 {[%emt 0:00:03]} 58. Kd3 {[%emt 0:00:33]} Bf4 {[%emt 0:00:13]} 59. Bf6 {[%emt 0:00:10]} Bc1 {[%emt 0:00:07]} 60. Bc3 {[%emt 0:00:28]} Bg5 {[%emt 0:00:10]} 61. Bb2 {[%emt 0:00:25]} Bf4 {[%emt 0:00:14]} 62. Kd4 {[%emt 0:00:15]} Bh6 {[%emt 0:00:15]} 63. Kd3 {[%emt 0:00:21]} Bf4 {[%emt 0:00:05]} 64. Bf6 {[%emt 0:00:10]} Bc1 {[%emt 0:00:05]} 65. Be5 {[%emt 0:00:37]} Bg5 {[%emt 0:00:21]} 66. Kc4 {[%emt 0:00:14]} Be3 {[%emt 0:00:05]} 67. Bd4 {[%emt 0:00:15]} 1/2-1/2

[Event "European Online Club-ch-B 2021"]
[Site "Online"]
[Date "2021.03.27"]
[Round "3.11"]
[White "De Rover, Yong Hoon"]
[Black "Thomas, Anysia"]
[Result "1-0"]
[ECO "A37"]
[WhiteElo "2349"]
[BlackElo "2164"]
[Annotator "NA"]
[PlyCount "63"]
[EventDate "2021.03.27"]
[EventType "team-tourn"]
[EventCountry "NET"]
[SourceTitle "playchess.com"]
[Source "ChessBase"]
[SourceQuality "1"]
[TimeControl "900+5"]

1. Nf3 {[%emt 0:00:00]} g6 {[%emt 0:00:05]} 2. c4 {[%emt 0:00:05]} Bg7 {[%emt 0:00:07]} 3. Nc3 {[%emt 0:00:04]} c5 {[%emt 0:00:04]} 4. g3 {[%emt 0:00:03]} Nc6 {[%emt 0:00:02]} 5. Bg2 {[%emt 0:00:03]} e6 {[%emt 0:00:02]} 6. d3 {[%emt 0:00:04]} Nge7 {[%emt 0:00:01]} 7. Bg5 {[%emt 0:00:05]} h6 {[%emt 0:00:04]} 8. Bd2 {[%emt 0:00:03]} d5 {[%emt 0:00:02]} 9. a3 {[%emt 0:00:05]} O-O {[%emt 0:00:04]} 10. Rb1 {[%emt 0:00:30]} b6 {[%emt 0:00:08]} 11. Qc1 {[%emt 0:00:18]} Kh7 {[%emt 0:00:05]} 12. O-O {[%emt 0:00:03]} Bb7 {[%emt 0:00:03]} 13. b4 {[%emt 0:00:04]} cxb4 {[%emt 0:00:06]} 14. axb4 {[%emt 0:00:00]} dxc4 {[%emt 0:00:02]} 15. dxc4 {[%emt 0:00:03]} Nf5 {[%emt 0:00:16]} 16. Rd1 {[%emt 0:00:38]} Qc8 {[%emt 0:00:23]} 17. e3 {[%emt 0:04:02]} Ne5 {[%emt 0:02:41]} 18. Nxe5 {[%emt 0:00:43]} Bxg2 {[%emt 0:00:47]} 19. Kxg2 {[%emt 0:02:57]} Bxe5 {[%emt 0:00:11]} 20. e4 {[%emt 0:00:30]} Qc6 {[%emt 0:04:00]} 21. f3 {[%emt 0:00:22]} Ng7 {[%emt 0:03:00]} 22. Ne2 {[%emt 0:02:33]} g5 {[%emt 0:00:09]} 23. b5 {[%emt 0:00:51]} Qb7 {[%emt 0:00:31]} 24. Bc3 {[%emt 0:00:11]} Bxc3 {[%emt 0:00:16]} 25. Qxc3 {[%emt 0:00:04]} f5 {[%emt 0:00:49]} 26. exf5 {[%emt 0:00:17]} Nxf5 {[%emt 0:00:48]} 27. h3 {[%emt 0:01:01]} Rf7 {[%emt 0:00:32]} 28. Qd3 {[%emt 0:00:40]} Kg7 {[%emt 0:00:31]} 29. Nc3 {[%emt 0:00:49]} Raf8 {[%emt 0:01:16]} 30. Ne4 {[%emt 0:00:03]} Rd7 {[%emt 0:00:15]} 31. Qxd7+ {[%emt 0:00:09]} Qxd7 {[%emt 0:00:02]} 32. Rxd7+ {[%emt 0:00:00]} 1-0

[Event "European Online Club-ch-B 2021"]
[Site "Online"]
[Date "2021.03.27"]
[Round "3.12"]
[White "Frantz, Nicolas"]
[Black "Grochal, Joey"]
[Result "1-0"]
[ECO "B40"]
[WhiteElo "2140"]
[BlackElo "2335"]
[Annotator "NA"]
[PlyCount "59"]
[EventDate "2021.03.27"]
[EventType "team-tourn"]
[EventCountry "NET"]
[SourceTitle "playchess.com"]
[Source "ChessBase"]
[SourceQuality "1"]
[TimeControl "900+5"]

1. e4 {[%emt 0:00:00]} c5 {[%emt 0:00:03]} 2. Nf3 {[%emt 0:00:02]} e6 {[%emt 0:00:02]} 3. b3 {[%emt 0:00:03]} Nf6 {[%emt 0:00:06]} 4. e5 {[%emt 0:00:02]} Nd5 {[%emt 0:00:02]} 5. Bb2 {[%emt 0:00:02]} Nc6 {[%emt 0:00:03]} 6. c4 {[%emt 0:00:02]} Nde7 {[%emt 0:00:06]} 7. Nc3 {[%emt 0:00:23]} d5 {[%emt 0:01:10]} 8. exd6 {[%emt 0:00:07]} Nf5 {[%emt 0:00:03]} 9. Nb5 {[%emt 0:00:20]} Nxd6 {[%emt 0:00:05]} 10. Nxd6+ {[%emt 0:00:14]} Qxd6 {[%emt 0:00:00]} 11. g3 {[%emt 0:00:16]} e5 {[%emt 0:00:52]} 12. Bg2 {[%emt 0:00:13]} Bf5 {[%emt 0:00:58]} 13. O-O {[%emt 0:00:04]} Be7 {[%emt 0:00:39]} 14. Re1 {[%emt 0:00:04]} f6 {[%emt 0:00:08]} 15. Ba3 {[%emt 0:01:15]} O-O {[%emt 0:00:36]} 16. Nh4 {[%emt 0:01:54]} Be6 {[%emt 0:00:05]} 17. Bb2 {[%emt 0:01:30]} Rad8 {[%emt 0:00:22]} 18. Bc3 {[%emt 0:00:03]} Rd7 {[%emt 0:01:22]} 19. Qh5 {[%emt 0:00:32]} Bf7 {[%emt 0:02:28]} 20. Qg4 {[%emt 0:00:06]} Nd4 {[%emt 0:01:51]} 21. Bxd4 {[%emt 0:02:01]} Qxd4 {[%emt 0:00:21]} 22. Be4 {[%emt 0:00:06]} Bg6 {[%emt 0:02:53]} 23. Nxg6 {[%emt 0:00:32]} hxg6 {[%emt 0:00:02]} 24. Qxg6 {[%emt 0:00:03]} Rfd8 {[%emt 0:00:06]} 25. Rad1 {[%emt 0:02:55]} Bf8 {[%emt 0:00:22]} 26. Bf5 {[%emt 0:00:36]} Re7 {[%emt 0:01:00]} 27. Re4 {[%emt 0:00:07]} Qd3 {[%emt 0:00:30]} 28. Rh4 {[%emt 0:00:10]} Qf3 {[%emt 0:00:12]} 29. Rh8+ {[%emt 0:00:11]} Kxh8 {[%emt 0:00:02]} 30. Qh7# {[%emt 0:00:01]} 1-0

[Event "European Online Club-ch-B 2021"]
[Site "Online"]
[Date "2021.03.27"]
[Round "3.13"]
[White "Gorodetzky, David"]
[Black "Sorensen, Hampus"]
[Result "0-1"]
[ECO "A06"]
[WhiteElo "2495"]
[BlackElo "2395"]
[Annotator "ChessBase"]
[PlyCount "118"]
[EventDate "2021.03.27"]
[EventType "team-tourn"]
[EventCountry "NET"]
[SourceTitle "playchess.com"]
[Source "ChessBase"]
[SourceQuality "1"]
[TimeControl "900+5"]

1. b3 {[%emt 0:00:00]} d5 {[%emt 0:00:20]} 2. Bb2 {[%emt 0:00:03]} Nf6 {[%emt 0:00:12]} 3. Nf3 {[%emt 0:00:02]} Bg4 {[%emt 0:00:26]} 4. g3 {[%emt 0:00:02]} Bxf3 {[%emt 0:00:21]} 5. exf3 {[%emt 0:00:00]} Nbd7 {[%emt 0:00:06]} 6. d4 {[%emt 0:00:03]} g6 {[%emt 0:00:15]} 7. f4 {[%emt 0:00:02]} Bg7 {[%emt 0:00:02]} 8. Bg2 {[%emt 0:00:01]} O-O {[%emt 0:00:03]} 9. Nd2 {[%emt 0:00:01]} e6 {[%emt 0:00:24]} 10. O-O {[%emt 0:00:04]} c5 {[%emt 0:00:10]} 11. c4 {[%emt 0:00:03]} Qb6 {[%emt 0:00:33]} 12. cxd5 {[%emt 0:00:52]} exd5 {[%emt 0:00:46]} 13. dxc5 {[%emt 0:00:35]} Nxc5 {[%emt 0:00:07]} 14. Nf3 {[%emt 0:00:12]} Rfd8 {[%emt 0:00:50]} 15. Bd4 {[%emt 0:00:14]} Qa5 {[%emt 0:00:33]} 16. Rc1 {[%emt 0:00:34]} Ne6 {[%emt 0:00:04]} 17. Bc3 {[%emt 0:00:08]} Qa6 {[%emt 0:01:07]} 18. Nd4 {[%emt 0:00:35]} Ne4 {[%emt 0:00:23]} 19. Ba1 {[%emt 0:00:20]} Rd7 {[%emt 0:01:32]} 20. f5 {[%emt 0:02:02]} Nxd4 {[%emt 0:00:09]} 21. Bxd4 {[%emt 0:00:02]} Bxd4 {[%emt 0:00:15]} 22. Qxd4 {[%emt 0:00:00]} gxf5 {[%emt 0:00:22]} 23. f3 {[%emt 0:00:51]} Ng5 {[%emt 0:00:30]} 24. Rfe1 {[%emt 0:00:21]} Qb6 {[%emt 0:00:16]} 25. Red1 {[%emt 0:00:27]} Qxd4+ {[%emt 0:01:27]} 26. Rxd4 {[%emt 0:00:00]} Ne6 {[%emt 0:00:01]} 27. Rb4 {[%emt 0:00:51]} f4 {[%emt 0:00:36]} 28. Kf2 {[%emt 0:00:27]} fxg3+ {[%emt 0:00:30]} 29. hxg3 {[%emt 0:00:15]} b6 {[%emt 0:00:07]} 30. Rd1 {[%emt 0:00:17]} Rc8 {[%emt 0:00:11]} 31. Rd2 {[%emt 0:00:01]} Rc5 {[%emt 0:00:14]} 32. f4 {[%emt 0:00:15]} Kg7 {[%emt 0:00:15]} 33. f5 {[%emt 0:01:14]} Ng5 {[%emt 0:00:39]} 34. Rbd4 {[%emt 0:01:10]} Kf6 {[%emt 0:00:02]} 35. g4 {[%emt 0:00:14]} Ke5 {[%emt 0:00:06]} 36. Kg3 {[%emt 0:01:51]} h6 {[%emt 0:00:32]} 37. R2d3 {[%emt 0:03:17]} Ra5 {[%emt 0:00:36]} 38. a4 {[%emt 0:00:18]} Rc5 {[%emt 0:00:08]} 39. b4 {[%emt 0:00:14]} Rcc7 {[%emt 0:00:22]} 40. Rxd5+ {[%emt 0:00:05]} Rxd5 {[%emt 0:00:02]} 41. Rxd5+ {[%emt 0:00:00]} Kf6 {[%emt 0:00:02]} 42. Rd6+ {[%emt 0:00:13]} Ke7 {[%emt 0:00:24]} 43. Rxh6 {[%emt 0:00:10]} Rc4 {[%emt 0:00:04]} 44. Bd5 {[%emt 0:00:07]} Rxb4 {[%emt 0:00:05]} 45. f6+ {[%emt 0:00:02]} Kd6 {[%emt 0:00:03]} 46. Bg2 {[%emt 0:00:10]} Rxa4 {[%emt 0:00:06]} 47. Rh5 {[%emt 0:00:01]} Ne4+ {[%emt 0:00:08]} 48. Bxe4 {[%emt 0:00:08]} Rxe4 {[%emt 0:00:01]} 49. Kf3 {[%emt 0:00:02]} Re1 {[%emt 0:00:15]} 50. g5 {[%emt 0:00:07]} Ke6 {[%emt 0:00:09]} 51. Kf4 {[%emt 0:00:06]} Rf1+ {[%emt 0:00:04]} 52. Ke4 {[%emt 0:00:06]} Rf5 {[%emt 0:00:14]} 53. Ke3 {[%emt 0:00:04]} a5 {[%emt 0:00:05]} 54. Kd4 {[%emt 0:00:05]} b5 {[%emt 0:00:02]} 55. Ke4 {[%emt 0:00:01]} b4 {[%emt 0:01:28]} 56. Kd4 {[%emt 0:00:06]} a4 {[%emt 0:00:01]} 57. Kc4 {[%emt 0:00:08]} Rf4+ {[%emt 0:00:03]} 58. Kb5 {[%emt 0:00:04]} b3 {[%emt 0:00:01]} 59. Rh1 {[%emt 0:00:07]} a3 {[%emt 0:00:07]} 0-1

[Event "European Online Club-ch-B 2021"]
[Site "Online"]
[Date "2021.03.27"]
[Round "3.14"]
[White "Agrest, Inna"]
[Black "Parkhov, Yair"]
[Result "1/2-1/2"]
[ECO "C88"]
[WhiteElo "2285"]
[BlackElo "2407"]
[Annotator "NA"]
[PlyCount "83"]
[EventDate "2021.03.27"]
[EventType "team-tourn"]
[EventCountry "NET"]
[SourceTitle "playchess.com"]
[Source "ChessBase"]
[SourceQuality "1"]
[TimeControl "900+5"]

1. e4 {[%emt 0:00:00]} e5 {[%emt 0:00:02]} 2. Nf3 {[%emt 0:00:03]} Nc6 {[%emt 0:00:02]} 3. Bb5 {[%emt 0:00:01]} a6 {[%emt 0:00:01]} 4. Ba4 {[%emt 0:00:02]} Nf6 {[%emt 0:00:01]} 5. O-O {[%emt 0:00:01]} Be7 {[%emt 0:00:01]} 6. Re1 {[%emt 0:00:02]} b5 {[%emt 0:00:02]} 7. Bb3 {[%emt 0:00:01]} O-O {[%emt 0:00:01]} 8. h3 {[%emt 0:00:02]} Bb7 {[%emt 0:00:02]} 9. d3 {[%emt 0:00:03]} d5 {[%emt 0:00:02]} 10. exd5 {[%emt 0:00:29]} Nxd5 {[%emt 0:00:00]} 11. Nxe5 {[%emt 0:00:10]} Nd4 {[%emt 0:00:03]} 12. Nc3 {[%emt 0:01:05]} Nb4 {[%emt 0:00:09]} 13. Be3 {[%emt 0:01:24]} Nxb3 {[%emt 0:00:47]} 14. axb3 {[%emt 0:00:00]} f6 {[%emt 0:00:10]} 15. Nf3 {[%emt 0:00:18]} Bxf3 {[%emt 0:00:04]} 16. gxf3 {[%emt 0:00:32]} Qd7 {[%emt 0:00:10]} 17. Kg2 {[%emt 0:00:13]} f5 {[%emt 0:01:29]} 18. f4 {[%emt 0:00:40]} Bd6 {[%emt 0:00:59]} 19. Rc1 {[%emt 0:00:33]} Rf6 {[%emt 0:00:37]} 20. Qf3 {[%emt 0:00:07]} Raf8 {[%emt 0:00:04]} 21. Nd5 {[%emt 0:00:54]} Rg6+ {[%emt 0:00:32]} 22. Kh1 {[%emt 0:01:35]} Qc6 {[%emt 0:04:08]} 23. c4 {[%emt 0:00:13]} Nxd5 {[%emt 0:01:07]} 24. cxd5 {[%emt 0:00:34]} Qd7 {[%emt 0:00:20]} 25. Bc5 {[%emt 0:00:31]} Rd8 {[%emt 0:00:28]} 26. d4 {[%emt 0:02:18]} h6 {[%emt 0:00:36]} 27. b4 {[%emt 0:00:34]} Kh7 {[%emt 0:00:05]} 28. b3 {[%emt 0:00:31]} Qf7 {[%emt 0:00:06]} 29. Re3 {[%emt 0:00:43]} Rd7 {[%emt 0:00:53]} 30. Rc2 {[%emt 0:00:34]} Qg8 {[%emt 0:01:06]} 31. Rc1 {[%emt 0:00:10]} Qa8 {[%emt 0:00:06]} 32. Rc2 {[%emt 0:01:07]} Qd8 {[%emt 0:00:29]} 33. Rc1 {[%emt 0:00:07]} Qf6 {[%emt 0:01:32]} 34. Bxd6 {[%emt 0:00:35]} cxd6 {[%emt 0:00:02]} 35. Rd1 {[%emt 0:00:19]} Qf7 {[%emt 0:00:26]} 36. Rde1 {[%emt 0:00:15]} Rc7 {[%emt 0:00:09]} 37. Re6 {[%emt 0:00:06]} Rf6 {[%emt 0:00:21]} 38. Kh2 {[%emt 0:00:14]} Rg6 {[%emt 0:00:27]} 39. Qd3 {[%emt 0:00:11]} Rf6 {[%emt 0:00:16]} 40. Qf3 {[%emt 0:00:20]} Rg6 {[%emt 0:00:06]} 41. Qd3 {[%emt 0:00:10]} Rf6 {[%emt 0:00:02]} 42. Qf3 {[%emt 0:00:15]} 1/2-1/2